[Event "*** Titled Tuesday Blitz"]
[Site "Chess.com"]
[Date "2020.03.03"]
[Round "1"]
[White "nonscitis"]
[Black "DACF2905"]
[Result "1-0"]
[WhiteElo "2621"]
[BlackElo "2217"]
[TimeControl "180+1"]
[EndTime "9:08:25 PST"]
[Termination "nonscitis won on time"]

1. d4 {[%clk 0:02:56.7]} 1... g6 {[%clk 0:01:58.8]} 2. c4 {[%clk 0:02:53.8]}
2... Bg7 {[%clk 0:01:58.2]} 3. Nf3 {[%clk 0:02:43.9]} 3... Nf6 {[%clk
0:01:53.8]} 4. Nc3 {[%clk 0:02:25.9]} 4... O-O {[%clk 0:01:51.9]} 5. e4 {[%clk
0:02:24.9]} 5... d6 {[%clk 0:01:42.6]} 6. Be2 {[%clk 0:02:21.8]} 6... e5 {[%clk
0:01:34.2]} 7. O-O {[%clk 0:02:20.2]} 7... exd4 {[%clk 0:01:31.7]} 8. Nxd4
{[%clk 0:02:20]} 8... Nc6 {[%clk 0:01:32.6]} 9. Be3 {[%clk 0:02:01.3]} 9... Nxd4
{[%clk 0:01:29.4]} 10. Bxd4 {[%clk 0:02:00.6]} 10... Be6 {[%clk 0:01:30.3]} 11.
Rc1 {[%clk 0:01:58.5]} 11... Qd7 {[%clk 0:01:28.8]} 12. f3 {[%clk 0:01:57.6]}
12... Ne8 {[%clk 0:01:24.4]} 13. Bxg7 {[%clk 0:01:50.9]} 13... Nxg7 {[%clk
0:01:24.3]} 14. Qd4 {[%clk 0:01:50.2]} 14... f5 {[%clk 0:01:22.9]} 15. Rfd1
{[%clk 0:01:48.7]} 15... fxe4 {[%clk 0:01:22.7]} 16. Nxe4 {[%clk 0:01:42.7]}
16... Qe7 {[%clk 0:01:14]} 17. g4 {[%clk 0:01:39.3]} 17... Rae8 {[%clk
0:01:10.1]} 18. Nc3 {[%clk 0:01:23.9]} 18... Qf7 {[%clk 0:01:03.4]} 19. b3
{[%clk 0:01:17.3]} 19... Qf4 {[%clk 0:01:01.9]} 20. Qxf4 {[%clk 0:01:14.5]}
20... Rxf4 {[%clk 0:01:00.8]} 21. Re1 {[%clk 0:01:11.4]} 21... Bf7 {[%clk
0:00:59.2]} 22. Kf2 {[%clk 0:01:09.6]} 22... Rf6 {[%clk 0:00:50.2]} 23. Nd5
{[%clk 0:01:08.4]} 23... Bxd5 {[%clk 0:00:49.1]} 24. cxd5 {[%clk 0:01:09.2]}
24... Rf7 {[%clk 0:00:49.4]} 25. Bb5 {[%clk 0:01:07.7]} 25... Rxe1 {[%clk
0:00:46.6]} 26. Rxe1 {[%clk 0:01:08.6]} 26... Kf8 {[%clk 0:00:45.9]} 27. h4
{[%clk 0:01:05.6]} 27... Re7 {[%clk 0:00:45.8]} 28. Rh1 {[%clk 0:01:01.5]} 28...
Ne8 {[%clk 0:00:45]} 29. g5 {[%clk 0:00:58.3]} 29... Ng7 {[%clk 0:00:44.1]} 30.
Bd3 {[%clk 0:00:57.1]} 30... Nh5 {[%clk 0:00:43.2]} 31. Be4 {[%clk 0:00:55.7]}
31... Kg7 {[%clk 0:00:41.6]} 32. b4 {[%clk 0:00:55.4]} 32... Nf4 {[%clk
0:00:35]} 33. a4 {[%clk 0:00:53.4]} 33... c6 {[%clk 0:00:30]} 34. dxc6 {[%clk
0:00:45.7]} 34... d5 {[%clk 0:00:29.9]} 35. Bb1 {[%clk 0:00:37.7]} 35... bxc6
{[%clk 0:00:29.8]} 36. Rc1 {[%clk 0:00:35.4]} 36... Rc7 {[%clk 0:00:22.8]} 37.
b5 {[%clk 0:00:34.1]} 37... c5 {[%clk 0:00:22.3]} 38. a5 {[%clk 0:00:34]} 38...
c4 {[%clk 0:00:21.5]} 39. Ke3 {[%clk 0:00:27.1]} 39... Ne6 {[%clk 0:00:18.8]}
40. Ba2 {[%clk 0:00:26.4]} 40... Rc5 {[%clk 0:00:16.4]} 41. Rb1 {[%clk
0:00:25.6]} 41... Rc8 {[%clk 0:00:03.6]} 42. b6 {[%clk 0:00:25.2]} 42... axb6
{[%clk 0:00:04.1]} 43. axb6 {[%clk 0:00:26.1]} 43... Rb8 {[%clk 0:00:04.8]} 44.
Rb5 {[%clk 0:00:19.8]} 44... Kf7 {[%clk 0:00:03.3]} 45. Rxd5 {[%clk 0:00:19.2]}
45... Rxb6 {[%clk 0:00:04]} 46. Bxc4 {[%clk 0:00:19.1]} 46... Ke7 {[%clk
0:00:04.7]} 47. Re5 {[%clk 0:00:19]} 47... Kf7 {[%clk 0:00:02.7]} 48. Ke4 {[%clk
0:00:15.2]} 48... Ke7 {[%clk 0:00:02.2]} 49. Rxe6+ {[%clk 0:00:14.1]} 49...
Rxe6+ {[%clk 0:00:01.1]} 50. Bxe6 {[%clk 0:00:15]} 50... Kxe6 {[%clk 0:00:02]}
51. f4 {[%clk 0:00:15.5]} 51... Kd6 {[%clk 0:00:02.1]} 52. f5 {[%clk 0:00:15.4]}
52... gxf5+ {[%clk 0:00:02.1]} 53. Kxf5 {[%clk 0:00:16.3]} 53... Ke7 {[%clk
0:00:02.5]} 54. h5 {[%clk 0:00:16.3]} 54... Kf7 {[%clk 0:00:01.5]} 55. Ke5
{[%clk 0:00:14.8]} 1-0

[Event "*** Titled Tuesday Blitz"]
[Site "Chess.com"]
[Date "2020.03.03"]
[Round "1"]
[White "AtabayevSaparmyrat"]
[Black "aridannie"]
[Result "1-0"]
[WhiteElo "2780"]
[BlackElo "2423"]
[TimeControl "180+1"]
[EndTime "9:08:27 PST"]
[Termination "AtabayevSaparmyrat won on time"]

1. e4 {[%clk 0:03:00.9]} 1... c5 {[%clk 0:02:59.7]} 2. Nf3 {[%clk 0:03:00.7]}
2... Nc6 {[%clk 0:02:59.8]} 3. d4 {[%clk 0:02:58.9]} 3... cxd4 {[%clk
0:02:59.8]} 4. Nxd4 {[%clk 0:02:59.8]} 4... g6 {[%clk 0:02:59.8]} 5. Nc3 {[%clk
0:02:59.3]} 5... Bg7 {[%clk 0:02:59.1]} 6. Be3 {[%clk 0:02:58.7]} 6... Nf6
{[%clk 0:02:58.8]} 7. Nxc6 {[%clk 0:02:58.6]} 7... bxc6 {[%clk 0:02:58]} 8. e5
{[%clk 0:02:58.9]} 8... Ng8 {[%clk 0:02:49.5]} 9. Bd4 {[%clk 0:02:57.6]} 9...
Nh6 {[%clk 0:02:34.3]} 10. e6 {[%clk 0:02:56.1]} 10... O-O {[%clk 0:02:33.8]}
11. Bxg7 {[%clk 0:02:54.9]} 11... Kxg7 {[%clk 0:02:34]} 12. exd7 {[%clk
0:02:54.5]} 12... Qxd7 {[%clk 0:02:32.4]} 13. Qxd7 {[%clk 0:02:54.5]} 13... Bxd7
{[%clk 0:02:33.3]} 14. O-O-O {[%clk 0:02:55.4]} 14... Be6 {[%clk 0:02:27.8]} 15.
Be2 {[%clk 0:02:52.2]} 15... Rfd8 {[%clk 0:02:25.7]} 16. Bf3 {[%clk 0:02:51.5]}
16... Rxd1+ {[%clk 0:02:21.8]} 17. Rxd1 {[%clk 0:02:51.2]} 17... Rc8 {[%clk
0:02:21.8]} 18. Ne4 {[%clk 0:02:44.9]} 18... Bd5 {[%clk 0:02:18.1]} 19. b3
{[%clk 0:02:38.9]} 19... Nf5 {[%clk 0:02:04.3]} 20. c4 {[%clk 0:02:32.3]} 20...
Bxe4 {[%clk 0:02:03.5]} 21. Bxe4 {[%clk 0:02:33]} 21... Nd6 {[%clk 0:02:03.3]}
22. Bf3 {[%clk 0:02:29.6]} 22... c5 {[%clk 0:02:02.1]} 23. Kc2 {[%clk 0:02:25]}
23... h5 {[%clk 0:01:57.6]} 24. h4 {[%clk 0:02:19.4]} 24... a5 {[%clk
0:01:56.5]} 25. Kc3 {[%clk 0:02:16.8]} 25... Nf5 {[%clk 0:01:50.3]} 26. g3
{[%clk 0:02:10.9]} 26... Nd4 {[%clk 0:01:47.6]} 27. Bg2 {[%clk 0:02:05.4]} 27...
Rd8 {[%clk 0:01:39.4]} 28. Kb2 {[%clk 0:01:53.5]} 28... e6 {[%clk 0:01:35.6]}
29. Bf1 {[%clk 0:01:31.2]} 29... Kf6 {[%clk 0:01:29.8]} 30. Rd3 {[%clk
0:01:31.1]} 30... Rb8 {[%clk 0:01:24.9]} 31. Kc3 {[%clk 0:01:22.9]} 31... a4
{[%clk 0:01:10.3]} 32. b4 {[%clk 0:01:03.7]} 32... e5 {[%clk 0:01:06.8]} 33. b5
{[%clk 0:00:58]} 33... Ke6 {[%clk 0:00:53.5]} 34. Bg2 {[%clk 0:00:54.1]} 34...
f5 {[%clk 0:00:51.7]} 35. Bd5+ {[%clk 0:00:53]} 35... Kd6 {[%clk 0:00:49.4]} 36.
Bf7 {[%clk 0:00:48.9]} 36... e4 {[%clk 0:00:48.4]} 37. Rd1 {[%clk 0:00:46.2]}
37... Ke5 {[%clk 0:00:26.5]} 38. Bxg6 {[%clk 0:00:44.7]} 38... Rh8 {[%clk
0:00:23.7]} 39. Bf7 {[%clk 0:00:37.9]} 39... f4 {[%clk 0:00:22.2]} 40. gxf4+
{[%clk 0:00:37.4]} 40... Kxf4 {[%clk 0:00:23.1]} 41. Bd5 {[%clk 0:00:32.1]}
41... Kf3 {[%clk 0:00:14.9]} 42. b6 {[%clk 0:00:27.7]} 42... Rb8 {[%clk
0:00:14.2]} 43. b7 {[%clk 0:00:27.5]} 43... Kxf2 {[%clk 0:00:13.5]} 44. Bxe4
{[%clk 0:00:26.9]} 44... Kg3 {[%clk 0:00:13.2]} 45. Rxd4 {[%clk 0:00:23.1]}
45... cxd4+ {[%clk 0:00:12.7]} 46. Kxd4 {[%clk 0:00:23.5]} 46... Kxh4 {[%clk
0:00:13.4]} 47. c5 {[%clk 0:00:23.7]} 47... Kg3 {[%clk 0:00:12.4]} 48. c6 {[%clk
0:00:24]} 48... h4 {[%clk 0:00:11.9]} 49. c7 {[%clk 0:00:24.1]} 1-0

[Event "*** Titled Tuesday Blitz"]
[Site "Chess.com"]
[Date "2020.03.03"]
[Round "1"]
[White "124chess"]
[Black "Sankalp_Gupta2003"]
[Result "0-1"]
[WhiteElo "2459"]
[BlackElo "2828"]
[TimeControl "180+1"]
[EndTime "9:08:35 PST"]
[Termination "Sankalp_Gupta2003 won by resignation"]

1. d4 {[%clk 0:02:57.3]} 1... Nf6 {[%clk 0:02:59.3]} 2. Bf4 {[%clk 0:02:56.7]}
2... g6 {[%clk 0:02:57.5]} 3. Nc3 {[%clk 0:02:54.5]} 3... d5 {[%clk 0:02:57]} 4.
e3 {[%clk 0:02:52.3]} 4... Bg7 {[%clk 0:02:57.2]} 5. Nb5 {[%clk 0:02:50.4]} 5...
Na6 {[%clk 0:02:56.2]} 6. c4 {[%clk 0:02:50.6]} 6... O-O {[%clk 0:02:44.1]} 7.
Nf3 {[%clk 0:02:46.1]} 7... Bf5 {[%clk 0:02:32.3]} 8. Be2 {[%clk 0:02:44.8]}
8... c6 {[%clk 0:02:15.6]} 9. Nc3 {[%clk 0:02:44.2]} 9... Ne4 {[%clk 0:02:13.5]}
10. O-O {[%clk 0:02:42.5]} 10... Nxc3 {[%clk 0:02:12.8]} 11. bxc3 {[%clk
0:02:42.4]} 11... Qa5 {[%clk 0:02:12.1]} 12. Qb3 {[%clk 0:02:38.9]} 12... dxc4
{[%clk 0:02:05.2]} 13. Bxc4 {[%clk 0:02:37.6]} 13... b5 {[%clk 0:02:04.6]} 14.
Be2 {[%clk 0:02:29.6]} 14... c5 {[%clk 0:02:02.7]} 15. Qxb5 {[%clk 0:02:26.5]}
15... Qxb5 {[%clk 0:01:13.8]} 16. Bxb5 {[%clk 0:02:27.4]} 16... Nb8 {[%clk
0:01:13]} 17. Rac1 {[%clk 0:01:59.7]} 17... a6 {[%clk 0:01:09.9]} 18. Ba4 {[%clk
0:01:57.2]} 18... Rc8 {[%clk 0:01:05.7]} 19. Be5 {[%clk 0:01:47.7]} 19... Nd7
{[%clk 0:01:02.1]} 20. Bxg7 {[%clk 0:01:45.7]} 20... Kxg7 {[%clk 0:01:02.6]} 21.
e4 {[%clk 0:01:38.2]} 21... Nb6 {[%clk 0:01:02.2]} 22. Bc2 {[%clk 0:01:31.7]}
22... Bd7 {[%clk 0:01:01.2]} 23. d5 {[%clk 0:01:14.6]} 23... Rab8 {[%clk
0:00:59.5]} 24. Rfe1 {[%clk 0:00:46.8]} 24... a5 {[%clk 0:00:58.3]} 25. h3
{[%clk 0:00:45.9]} 25... Bb5 {[%clk 0:00:55.1]} 26. Red1 {[%clk 0:00:43]} 26...
Be2 {[%clk 0:00:52.9]} 27. Re1 {[%clk 0:00:42.5]} 27... Bxf3 {[%clk 0:00:53.5]}
28. gxf3 {[%clk 0:00:43.4]} 28... Nd7 {[%clk 0:00:52]} 29. f4 {[%clk 0:00:35.5]}
29... Rb2 {[%clk 0:00:48.9]} 30. Bb1 {[%clk 0:00:32.4]} 30... c4 {[%clk
0:00:40.6]} 31. e5 {[%clk 0:00:31.4]} 31... Rcb8 {[%clk 0:00:35.4]} 32. Red1
{[%clk 0:00:27.9]} 32... Nc5 {[%clk 0:00:28.8]} 33. f5 {[%clk 0:00:17.1]} 33...
gxf5 {[%clk 0:00:23.2]} 34. Bxf5 {[%clk 0:00:16.7]} 34... Rxa2 {[%clk
0:00:18.3]} 35. d6 {[%clk 0:00:17.1]} 35... e6 {[%clk 0:00:16.5]} 36. Bg4 {[%clk
0:00:16.9]} 36... Nb3 {[%clk 0:00:14.7]} 37. Rb1 {[%clk 0:00:16]} 37... Rd8
{[%clk 0:00:14.8]} 38. Kf1 {[%clk 0:00:14.2]} 38... a4 {[%clk 0:00:14.6]} 39.
Ke1 {[%clk 0:00:13.6]} 39... Rc2 {[%clk 0:00:12.9]} 40. Be2 {[%clk 0:00:12.2]}
40... Rxc3 {[%clk 0:00:13.3]} 41. Rb2 {[%clk 0:00:12.3]} 41... a3 {[%clk
0:00:13.2]} 42. Ra2 {[%clk 0:00:12.5]} 42... Nc1 {[%clk 0:00:12.3]} 43. Ra1
{[%clk 0:00:12.8]} 43... Nxe2 {[%clk 0:00:10.7]} 44. Kxe2 {[%clk 0:00:13.3]}
44... Rb8 {[%clk 0:00:10.4]} 45. Rdc1 {[%clk 0:00:10.6]} 45... Rb2+ {[%clk
0:00:05.6]} 46. Kf1 {[%clk 0:00:10]} 46... Rxc1+ {[%clk 0:00:06.2]} 47. Rxc1
{[%clk 0:00:10.2]} 47... a2 {[%clk 0:00:07.1]} 48. d7 {[%clk 0:00:08.9]} 48...
Rd2 {[%clk 0:00:07.5]} 49. Ra1 {[%clk 0:00:08.1]} 49... c3 {[%clk 0:00:06.1]}
50. Rxa2 {[%clk 0:00:07.7]} 50... Rxd7 {[%clk 0:00:05]} 51. Rc2 {[%clk 0:00:08]}
51... Rc7 {[%clk 0:00:05.5]} 52. Ke2 {[%clk 0:00:08.9]} 52... Kg6 {[%clk
0:00:06.1]} 53. Ke3 {[%clk 0:00:09.3]} 53... Kf5 {[%clk 0:00:06.7]} 54. f4
{[%clk 0:00:09.6]} 54... h5 {[%clk 0:00:07]} 0-1

[Event "*** Titled Tuesday Blitz"]
[Site "Chess.com"]
[Date "2020.03.03"]
[Round "1"]
[White "ALeks_Ivlev"]
[Black "ahkashefi2800"]
[Result "0-1"]
[WhiteElo "2565"]
[BlackElo "2092"]
[TimeControl "180+1"]
[EndTime "9:08:41 PST"]
[Termination "ahkashefi2800 won by resignation"]

1. Nf3 {[%clk 0:03:00.6]} 1... d5 {[%clk 0:02:53.4]} 2. c4 {[%clk 0:02:59.4]}
2... d4 {[%clk 0:02:50.4]} 3. g3 {[%clk 0:02:57.8]} 3... Nc6 {[%clk 0:02:39.2]}
4. Bg2 {[%clk 0:02:57.7]} 4... e5 {[%clk 0:02:39.8]} 5. d3 {[%clk 0:02:58]} 5...
Bb4+ {[%clk 0:02:31]} 6. Nbd2 {[%clk 0:02:55.6]} 6... a5 {[%clk 0:02:29.8]} 7.
O-O {[%clk 0:02:54.8]} 7... Nf6 {[%clk 0:02:30.2]} 8. Nb1 {[%clk 0:02:29.9]}
8... O-O {[%clk 0:02:26.7]} 9. Bg5 {[%clk 0:02:29.1]} 9... h6 {[%clk 0:02:22]}
10. Bxf6 {[%clk 0:02:28.7]} 10... Qxf6 {[%clk 0:02:22.9]} 11. Nbd2 {[%clk
0:02:29.2]} 11... Qd8 {[%clk 0:02:19.6]} 12. a3 {[%clk 0:02:28.3]} 12... Be7
{[%clk 0:02:19.3]} 13. b3 {[%clk 0:02:18.1]} 13... Bf5 {[%clk 0:02:07.3]} 14.
Ne1 {[%clk 0:02:15.6]} 14... Bh7 {[%clk 0:01:44.7]} 15. Be4 {[%clk 0:02:15.6]}
15... f5 {[%clk 0:01:44.3]} 16. Bd5+ {[%clk 0:02:14.5]} 16... Kh8 {[%clk
0:01:44.6]} 17. Nef3 {[%clk 0:02:12.7]} 17... Bf6 {[%clk 0:01:40.9]} 18. Rb1
{[%clk 0:02:05.5]} 18... Ne7 {[%clk 0:01:39.3]} 19. Bxb7 {[%clk 0:02:01.1]}
19... Rb8 {[%clk 0:01:39.5]} 20. Ba6 {[%clk 0:02:01.6]} 20... e4 {[%clk
0:01:28.7]} 21. Ne1 {[%clk 0:02:00.5]} 21... c6 {[%clk 0:01:24.1]} 22. b4 {[%clk
0:01:58.5]} 22... axb4 {[%clk 0:01:04.1]} 23. axb4 {[%clk 0:01:56.8]} 23... Rb6
{[%clk 0:01:04.7]} 24. b5 {[%clk 0:01:56.1]} 24... c5 {[%clk 0:01:05.1]} 25. f4
{[%clk 0:01:42.8]} 25... exf3 {[%clk 0:00:58.5]} 26. Nexf3 {[%clk 0:01:39.9]}
26... f4 {[%clk 0:00:54]} 27. gxf4 {[%clk 0:01:36.2]} 27... Nf5 {[%clk
0:00:54.5]} 28. Ne4 {[%clk 0:01:33.1]} 28... Ne3 {[%clk 0:00:53.5]} 29. Qd2
{[%clk 0:01:27.4]} 29... Bxe4 {[%clk 0:00:53.2]} 30. dxe4 {[%clk 0:01:27.2]}
30... Nxf1 {[%clk 0:00:48.4]} 31. Rxf1 {[%clk 0:01:26.9]} 31... Be7 {[%clk
0:00:43]} 32. Ne1 {[%clk 0:01:26.4]} 32... Rg6+ {[%clk 0:00:38.6]} 33. Kh1
{[%clk 0:01:26.3]} 33... Qa8 {[%clk 0:00:34.3]} 34. Qd3 {[%clk 0:01:26.2]} 34...
Rgf6 {[%clk 0:00:29.3]} 35. Ng2 {[%clk 0:01:20.5]} 35... Bd6 {[%clk 0:00:29.5]}
36. f5 {[%clk 0:01:16.8]} 36... Qb8 {[%clk 0:00:28.8]} 37. Qh3 {[%clk
0:01:15.6]} 37... Be5 {[%clk 0:00:26.2]} 38. Nh4 {[%clk 0:01:15.1]} 38... Kg8
{[%clk 0:00:26.4]} 39. Ng6 {[%clk 0:01:14.1]} 39... R8f7 {[%clk 0:00:25.4]} 40.
Kg2 {[%clk 0:01:06.1]} 40... Qe8 {[%clk 0:00:22.6]} 41. Qg4 {[%clk 0:01:04.9]}
41... Bb8 {[%clk 0:00:10.6]} 42. h4 {[%clk 0:01:04.7]} 42... h5 {[%clk
0:00:09.1]} 43. Qf3 {[%clk 0:01:03.2]} 43... Rxg6+ {[%clk 0:00:08.1]} 44. fxg6
{[%clk 0:01:02.3]} 44... Rxf3 {[%clk 0:00:09]} 45. Rxf3 {[%clk 0:01:02.1]} 45...
Qxe4 {[%clk 0:00:08.7]} 46. Bc8 {[%clk 0:01:01.9]} 46... Qxe2+ {[%clk
0:00:08.5]} 47. Rf2 {[%clk 0:01:02]} 47... Qe4+ {[%clk 0:00:08.5]} 48. Kf1
{[%clk 0:01:00.8]} 48... d3 {[%clk 0:00:09.4]} 49. Kg1 {[%clk 0:00:49.8]} 49...
Bf4 {[%clk 0:00:07.7]} 50. Ra2 {[%clk 0:00:29.3]} 50... Qe1+ {[%clk 0:00:06.3]}
51. Kg2 {[%clk 0:00:28.3]} 51... d2 {[%clk 0:00:06.4]} 52. Be6+ {[%clk
0:00:26.3]} 52... Kf8 {[%clk 0:00:03.4]} 53. Ra8+ {[%clk 0:00:19.3]} 53... Ke7
{[%clk 0:00:03.9]} 54. Bg4 {[%clk 0:00:19.4]} 54... Kf6 {[%clk 0:00:04.3]} 55.
Rf8+ {[%clk 0:00:18.6]} 55... Kxg6 {[%clk 0:00:04.2]} 56. Rxf4 {[%clk 0:00:17]}
56... hxg4 {[%clk 0:00:05.1]} 57. Rxg4+ {[%clk 0:00:17.3]} 57... Kf5 {[%clk
0:00:05.4]} 58. Rg5+ {[%clk 0:00:17.7]} 58... Kf4 {[%clk 0:00:05.7]} 59. Rxg7
{[%clk 0:00:17.6]} 59... d1=Q {[%clk 0:00:06.6]} 60. Rf7+ {[%clk 0:00:17.9]}
60... Kg4 {[%clk 0:00:07.2]} 61. Rg7+ {[%clk 0:00:18.3]} 61... Kxh4 {[%clk
0:00:07.3]} 62. Rh7+ {[%clk 0:00:18.8]} 62... Qh5 {[%clk 0:00:07.7]} 63. Rxh5+
{[%clk 0:00:19]} 63... Kxh5 {[%clk 0:00:08.6]} 64. b6 {[%clk 0:00:19.5]} 64...
Qb4 {[%clk 0:00:09.5]} 65. b7 {[%clk 0:00:20]} 65... Qxb7+ {[%clk 0:00:10.4]}
66. Kf2 {[%clk 0:00:20.3]} 66... Qb3 {[%clk 0:00:11.3]} 0-1

[Event "*** Titled Tuesday Blitz"]
[Site "Chess.com"]
[Date "2020.03.03"]
[Round "1"]
[White "ShahMatKanal"]
[Black "vugarrasulov"]
[Result "0-1"]
[WhiteElo "2510"]
[BlackElo "2896"]
[TimeControl "180+1"]
[EndTime "9:08:44 PST"]
[Termination "vugarrasulov won by resignation"]

1. d4 {[%clk 0:03:00.7]} 1... Nf6 {[%clk 0:02:58.5]} 2. c4 {[%clk 0:03:00.2]}
2... e6 {[%clk 0:02:57.7]} 3. Nc3 {[%clk 0:03:00.2]} 3... Bb4 {[%clk 0:02:57]}
4. e3 {[%clk 0:03:00.5]} 4... O-O {[%clk 0:02:56.4]} 5. Ne2 {[%clk 0:03:00.2]}
5... d5 {[%clk 0:02:54.4]} 6. a3 {[%clk 0:02:59.5]} 6... Be7 {[%clk 0:02:54.9]}
7. Nf4 {[%clk 0:02:55.8]} 7... dxc4 {[%clk 0:02:50.4]} 8. Bxc4 {[%clk
0:02:54.7]} 8... Nbd7 {[%clk 0:02:47.9]} 9. O-O {[%clk 0:02:53.2]} 9... c5
{[%clk 0:02:47.3]} 10. d5 {[%clk 0:02:40.8]} 10... Nb6 {[%clk 0:02:40.5]} 11.
Ba2 {[%clk 0:02:39.9]} 11... exd5 {[%clk 0:02:40.1]} 12. Ncxd5 {[%clk
0:02:35.3]} 12... Nbxd5 {[%clk 0:02:38.6]} 13. Nxd5 {[%clk 0:02:35]} 13... Nxd5
{[%clk 0:02:38.2]} 14. Bxd5 {[%clk 0:02:32.1]} 14... Bf6 {[%clk 0:02:35.9]} 15.
Qb3 {[%clk 0:02:19.3]} 15... Rb8 {[%clk 0:02:22.2]} 16. Bd2 {[%clk 0:02:08.1]}
16... b5 {[%clk 0:02:21.5]} 17. Bc3 {[%clk 0:01:54.2]} 17... Bxc3 {[%clk
0:02:04.3]} 18. bxc3 {[%clk 0:01:53.9]} 18... Qc7 {[%clk 0:02:01.3]} 19. e4
{[%clk 0:01:40.4]} 19... c4 {[%clk 0:01:59.9]} 20. Qd1 {[%clk 0:01:34.5]} 20...
Qc5 {[%clk 0:01:53.8]} 21. Kh1 {[%clk 0:01:27.4]} 21... Be6 {[%clk 0:01:46.1]}
22. Qf3 {[%clk 0:01:07.7]} 22... Bxd5 {[%clk 0:01:42.4]} 23. exd5 {[%clk
0:01:07.8]} 23... Rbd8 {[%clk 0:01:41.3]} 24. Rfd1 {[%clk 0:01:07.4]} 24... Rd6
{[%clk 0:01:41]} 25. a4 {[%clk 0:00:57.8]} 25... a6 {[%clk 0:01:28.8]} 26. axb5
{[%clk 0:00:57.5]} 26... axb5 {[%clk 0:01:29.7]} 27. Rd2 {[%clk 0:00:51]} 27...
h6 {[%clk 0:01:26.6]} 28. Rad1 {[%clk 0:00:48.9]} 28... Re8 {[%clk 0:01:24.1]}
29. h3 {[%clk 0:00:46.2]} 29... Re5 {[%clk 0:01:15.5]} 30. Kh2 {[%clk
0:00:43.1]} 30... g6 {[%clk 0:01:12]} 31. Rd4 {[%clk 0:00:31.5]} 31... Kg7
{[%clk 0:01:00.6]} 32. h4 {[%clk 0:00:31.4]} 32... Rf5 {[%clk 0:00:55]} 33. Qe3
{[%clk 0:00:17]} 33... Rdxd5 {[%clk 0:00:50.7]} 34. Rxd5 {[%clk 0:00:15.3]}
34... Rxd5 {[%clk 0:00:51.6]} 35. Qxc5 {[%clk 0:00:14.1]} 35... Rxc5 {[%clk
0:00:51.8]} 36. Rd8 {[%clk 0:00:12.1]} 36... Kf6 {[%clk 0:00:48.8]} 37. Kg3
{[%clk 0:00:10]} 37... Ke5 {[%clk 0:00:47.3]} 38. Kf3 {[%clk 0:00:08.6]} 38...
Rd5 {[%clk 0:00:47.3]} 39. Rb8 {[%clk 0:00:05.5]} 39... Kd6 {[%clk 0:00:46.8]}
40. Ke4 {[%clk 0:00:04.6]} 40... Re5+ {[%clk 0:00:39.9]} 41. Kd4 {[%clk
0:00:03.6]} 41... Rf5 {[%clk 0:00:39.6]} 42. f3 {[%clk 0:00:01.6]} 42... Kc6
{[%clk 0:00:35.3]} 43. Ke4 {[%clk 0:00:01.4]} 43... Rf6 {[%clk 0:00:25.1]} 44.
g4 {[%clk 0:00:01.5]} 44... Re6+ {[%clk 0:00:24.6]} 45. Kd4 {[%clk 0:00:01.8]}
45... Rd6+ {[%clk 0:00:24.9]} 46. Ke4 {[%clk 0:00:02.3]} 46... Rd3 {[%clk
0:00:25.4]} 47. Rc8+ {[%clk 0:00:02.2]} 47... Kb7 {[%clk 0:00:23]} 48. Rf8
{[%clk 0:00:02.1]} 48... Rxc3 {[%clk 0:00:23.3]} 49. Rxf7+ {[%clk 0:00:02.5]}
49... Kb6 {[%clk 0:00:20]} 50. f4 {[%clk 0:00:03.4]} 50... Rc1 {[%clk
0:00:17.1]} 51. f5 {[%clk 0:00:03.7]} 51... gxf5+ {[%clk 0:00:16.9]} 52. gxf5
{[%clk 0:00:04.5]} 52... Kc5 {[%clk 0:00:17.3]} 53. f6 {[%clk 0:00:04.1]} 53...
Re1+ {[%clk 0:00:17.9]} 54. Kf5 {[%clk 0:00:02.6]} 54... b4 {[%clk 0:00:18.1]}
55. Rc7+ {[%clk 0:00:01.6]} 55... Kd4 {[%clk 0:00:17.5]} 56. Rc8 {[%clk
0:00:02.5]} 56... Rf1+ {[%clk 0:00:16]} 57. Kg6 {[%clk 0:00:02.3]} 57... b3
{[%clk 0:00:16.4]} 58. f7 {[%clk 0:00:02.7]} 58... b2 {[%clk 0:00:15.9]} 59. Rb8
{[%clk 0:00:02.4]} 59... c3 {[%clk 0:00:16.4]} 60. Kg7 {[%clk 0:00:01.9]} 60...
c2 {[%clk 0:00:15.6]} 61. f8=Q {[%clk 0:00:01.9]} 61... Rxf8 {[%clk 0:00:14.7]}
62. Kxf8 {[%clk 0:00:02.4]} 62... b1=Q {[%clk 0:00:14.7]} 0-1